{"text_format":"3","workbook":"xlsx","n_sheets":1,"sheets":["岗位信息"],"not_rendered":{"defined_names":2},"read":"whole","date_system":"1900"}

{"sheet":"岗位信息","index":0,"n_rows":38,"n_cols":14,"rows_kept":38,"merged":[[0,0,0,12],[1,0,2,0],[1,1,2,1],[1,2,2,2],[1,3,2,3],[1,4,2,4],[1,5,2,5],[1,6,2,6],[1,7,1,12],[1,13,2,13],[37,0,37,5]]}
["复旦大学附属肿瘤医院厦门医院2023年补充工作人员岗位信息表（8月）"]
["序号","岗位编码","类别","招聘岗位","岗位\n类别","岗位\n级别","招聘人数","所需资格条件",{"$nulls":5},"编制形式"]
[{"$nulls":7},"最高\n年龄","性别","最低\n学历","最低\n学位","所学专业","其他条件"]
[{"$f":"ROW()-3","v":1},"ZN01","医疗","肿瘤妇科副主任医师","专技岗",7,1,45,"不限","研究生","硕士","临床医学、肿瘤学、外科学、妇产科学","1.专业方向须为妇科;2.持有副主任医师及以上专业技术职务任职资格;3.2010年后（含）毕业生须完成妇产科住院医师规范化培训;4.具有2年以上三级医院临床工作经验。","人员控制总量"]
[2,"ZN02","医疗","大肠外科主治医师","专技岗",10,1,40,"不限","研究生","硕士","临床医学,肿瘤学,外科学","1.专业方向为普外科或大肠外科;2.持有主治医师及以上专业技术职务任职资格;3.2010年后（含）毕业生需完成住院医师规范化培训;4.具有2年以上三级医院临床工作经验。","人员控制总量"]
[3,"ZN03","医疗","肝脏外科主治医师","专技岗",10,1,40,"不限","研究生","硕士","临床医学、肿瘤学、外科学","1.专业方向为普外科或肝胆胰外科;2.持有主治医师及以上专业技术职务任职资格;3.2010年后（含）毕业生须完成外科住院医师规范化培训;4.具有2年以上三级医院临床工作经验。","人员控制总量"]
[4,"ZN04","医疗","胰腺外科主治医师","专技岗",10,1,40,"不限","研究生","硕士","临床医学、肿瘤学、外科学","1.专业方向为普外科或肝胆胰外科;2.持有主治医师及以上专业技术职务任职资格;3.2010年后（含）毕业生须完成外科住院医师规范化培训;4.具有2年以上三级医院临床工作经验。","人员控制总量"]
[5,"ZN05","医疗","泌尿外科主治医师","专技岗",10,1,40,"不限","研究生","硕士","临床医学、肿瘤学、外科学","1.专业方向为普外科或泌尿外科;2.持有主治医师及以上专业技术职务任职资格;3.2010年后（含）毕业生须完成外科住院医师规范化培训;4.具有2年以上三级医院临床工作经验。","人员控制总量"]
[6,"ZN06","医疗","胸外科主治医师","专技岗",10,2,40,"不限","研究生","硕士","临床医学、肿瘤学、外科学","1.专业方向为普外科或胸外科;2.持有主治医师及以上专业技术职务任职资格;3.2010年后（含）毕业生须完成外科住院医师规范化培训;4.具有2年以上三级医院临床工作经验。","人员控制总量"]
[7,"ZN07","医疗","头颈外科主治医师","专技岗",10,1,40,"不限","研究生","硕士","临床医学、肿瘤学、外科学、耳鼻咽喉科学","1.专业方向为普外科或头颈外科;2.持有主治医师及以上专业技术职务任职资格;3.2010年后（含）毕业生须完成外科住院医师规范化培训;4.具有2年以上三级医院临床工作经验。","人员控制总量"]
[8,"ZN08","医疗","乳腺外科主治医师","专技岗",10,1,40,"不限","研究生","硕士","临床医学,肿瘤学,外科学","1.专业方向为普外科或乳腺外科;2.持有主治医师及以上专业技术职务任职资格;3.2010年后（含）毕业生需完成住院医师规范化培训;4.具有2年以上三级医院临床工作经验。","人员控制总量"]
[9,"ZN09","医疗","肿瘤妇科主治医师","专技岗",10,1,40,"不限","研究生","硕士","临床医学、肿瘤学、外科学、妇产科学","1.专业方向须为妇科；2.持有主治医师及以上专业技术职务任职资格；3.2010年后（含）毕业生须完成妇产科住院医师规范化培训;4.具有2年以上三级医院临床工作经验。","人员控制总量"]
[10,"ZN10","医疗","放射治疗中心主治医师","专技岗",10,3,40,"不限","研究生","硕士","临床医学、肿瘤学","1.专业方向须为放射肿瘤学或肿瘤学;2.持有主治医师及以上专业技术职务任职资格;3.2010年后（含）毕业生须完成放射肿瘤科住院医师规范化培训;4.具有2年以上三级医院临床工作经验。","人员控制总量"]
[11,"ZN11","医疗","介入治疗科主治医师","专技岗",10,1,40,"不限","研究生","硕士","临床医学、影像医学与核医学、医学影像学、放射治疗学","1.临床医学专业方向需为内科学或外科学，影像医学与核医学专业方向须为介入放射学;2.持有主治医师及以上专业技术职务任职资格;3.2010年后（含）毕业生须完成内科、外科或放射科住院医师规范化培训;4.具有2年以上三级医院临床工作经验。","人员控制总量"]
[12,"ZN12","医疗","中西医结合科主治医师","专技岗",10,1,40,"不限","研究生","硕士","中医学、中医内科学、中西医结合临床、中西医临床医学","1.持有主治医师及以上专业技术职务任职资格;2.2010年后（含）毕业生须完成中医住院医师规范化培训;3.具有2年以上三级医院临床工作经验。","人员控制总量"]
[13,"ZN13","医疗","大肠外科住院医师","专技岗",12,1,35,"不限","研究生","硕士","临床医学、肿瘤学、外科学","1.专业方向为普外科或大肠外科;2.持有临床类《医师资格证书》;3.2010年后（含）毕业生须完成外科住院医师规范化培训。","人员控制总量"]
[14,"ZN14","医疗","肝脏外科住院医师","专技岗",12,1,35,"不限","研究生","硕士","临床医学、肿瘤学、外科学","1.专业方向为普外科或肝胆胰外科;2.持有临床类《医师资格证书》;3.2010年后（含）毕业生须完成外科住院医师规范化培训。","人员控制总量"]
[15,"ZN15","医疗","胰腺外科住院医师","专技岗",12,2,35,"不限","研究生","硕士","临床医学、肿瘤学、外科学","1.专业方向为普外科或肝胆胰外科;2.持有临床类《医师资格证书》;3.2010年后（含）毕业生须完成外科住院医师规范化培训。","人员控制总量"]
[16,"ZN16","医疗","胸外科住院医师","专技岗",12,1,35,"不限","研究生","硕士","临床医学、肿瘤学、外科学","1.专业方向为普外科或胸外科；2.持有临床类《医师资格证书》；3.2010年后（含）毕业生须完成外科住院医师规范化培训。","人员控制总量"]
[17,"ZN17","医疗","头颈外科住院医师","专技岗",12,1,35,"不限","研究生","硕士","临床医学、肿瘤学、外科学、耳鼻咽喉科学","1.专业方向为普外科或头颈外科;2.持有临床类《医师资格证书》;3.2010年后（含）毕业生须完成外科住院医师规范化培训。","人员控制总量"]
[18,"ZN18","医疗","乳腺外科住院医师","专技岗",12,1,35,"不限","研究生","硕士","临床医学、肿瘤学、外科学","1.专业方向为普外科或乳腺外科;2.持有临床类《医师资格证书》;3.2010年后（含）毕业生须完成外科住院医师规范化培训。","人员控制总量"]
[19,"ZN19","医疗","放射治疗中心住院医师","专技岗",12,1,35,"不限","研究生","硕士","临床医学、肿瘤学","1.专业方向须为放射肿瘤学或肿瘤学;2.持有临床类《医师资格证书》;3.2010年后（含）毕业生须完成放射肿瘤科住院医师规范化培训。","人员控制总量"]
[20,"ZN20","医疗","介入治疗科住院医师","专技岗",12,1,35,"不限","研究生","硕士","临床医学、影像医学与核医学、医学影像学、放射治疗学","1.临床医学专业方向需为内科学或外科学，影像医学与核医学专业方向须为介入放射学;2.持有临床类《医师资格证书》;3.2010年后（含）毕业生须完成内科、外科或放射科住院医师规范化培训。","人员控制总量"]
[21,"ZN21","医疗","重症医学科住院医师","专技岗",12,3,35,"不限","研究生","硕士","重症医学、急诊医学、临床医学","1.专业方向为重症医学或急诊医学;2.持有临床类《医师资格证书》;3.2010年后（含）毕业生须完成重症医学科、急诊科住院医师规范化培训。","人员控制总量"]
[22,"ZN22","医疗","病理科住院医师","专技岗",12,3,35,"不限","研究生","硕士","病理学、病理生理学、病理学与病理生理学、临床医学、临床病理学","1.持有临床类《医师资格证书》;2.2010年后（含）毕业生须完成住院医师规范化培训。","人员控制总量"]
[23,"ZN23","医疗","放射诊断科住院医师","专技岗",12,2,35,"不限","研究生","硕士","临床医学、影像医学与核医学、医学影像学、放射治疗学","1.专业方向须为影像医学;2.持有临床类《医师资格证书》;3.2010年后（含）毕业生须完成放射科住院医师规范化培训。","人员控制总量"]
[24,"ZN24","医疗","麻醉科住院医师","专技岗",12,8,35,"不限","研究生","硕士","临床医学、麻醉学","1.专业方向须为麻醉医学;2.持有临床类《医师资格证书》;3.2010年后（含）毕业生须完成麻醉科住院医师规范化培训。","人员控制总量"]
[25,"ZN25","医疗","营养科住院医师","专技岗",12,1,35,"不限","研究生","硕士","临床医学、内科学","1.持有临床类《医师资格证书》;2.2010年后（含）毕业生须完成内科住院医师规范化培训。","人员控制总量"]
[26,"ZN26","医疗","泌尿外科住院医师","专技岗",12,1,35,"不限","研究生","硕士","临床医学、肿瘤学、外科学","1.持有临床类《医师资格证书》;2.2010年后（含）毕业生须完成住院医师规范化培训。","人员控制总量"]
[27,"ZN27","医疗","肿瘤妇科住院医师","专技岗",12,1,35,"不限","研究生","硕士","临床医学、肿瘤学、外科学、妇产科学","1.持有临床类《医师资格证书》;2.2010年后（含）毕业生须完成住院医师规范化培训。","人员控制总量"]
[28,"ZN28","医疗","肿瘤内科住院医师","专技岗",12,1,35,"不限","研究生","硕士","临床医学、内科学、肿瘤学","1.持有临床类《医师资格证书》;2.2010年后（含）毕业生须完成住院医师规范化培训。","人员控制总量"]
[29,"ZN29","医技","放射治疗中心物理师","专技岗",12,1,35,"不限","研究生","硕士","医学影像学、影像医学与核医学、放射治疗学、生物医学工程、医学物理、物理学、核能与核技术工程",null,"人员控制总量"]
[30,"ZN30","医技","核医学科化学师","专技岗",12,1,35,"不限","研究生","硕士","放射化学、有机化学、药学类",null,"人员控制总量"]
[31,"ZN31","医技","药师","专技岗",12,1,35,"不限","研究生","硕士","药学、药理学、药物分析学、临床药学",null,"人员控制总量"]
[32,"ZN32","行政","办公室工作人员","管理岗",9,1,35,"不限","研究生","硕士","中国语言文学类、新闻传播学类、公共管理类、卫生管理类、公共卫生与预防医学类、临床医学类",null,"人员控制总量"]
[33,"ZN33","行政","后勤保障部工作人员2","专技岗",12,1,35,"不限","研究生","硕士","环境安全技术类、公安技术类、电气自动化类、土建类、管理科学与工程类、卫生管理类",null,"人员控制总量"]
[34,"ZN34","行政","财务部工作人员","专技岗",12,1,35,"不限","研究生","硕士","会计与审计类","1.具有2年以上医院会计岗位工作经验；\n2.具助理会计师及以上专业技术职务任职资格。","人员控制总量"]
["合计",{"$nulls":5},{"$f":"SUM(G4:G37)","v":50}]